fUST/lending_fUST_20240322
["ID","MTS","AMOUNT","RATE_DAILY","PERIOD"]
[320053441,1711117845767,-500.0,0.00028493,2]
[320053443,1711117845777,-500.0,0.00028493,2]
[320053444,1711117845787,-500.0,0.00028493,2]
[320053445,1711117845797,-521.93,0.00028493,2]
[320053446,1711117845808,-630.85833321,0.00028493,2]
[320053448,1711117845818,-410.01180871,0.00028493,2]
[320053449,1711117845829,-500.0,0.00028493,2]
[320053450,1711117845839,-500.0,0.00028493,2]
[320053451,1711117845849,-151.0,0.00028493,2]
[320053452,1711117845859,-259.15378988,0.00028493,30]
[320053453,1711117845870,-500.0,0.00028493,2]
[320053455,1711117845885,-498.89357838,0.00028493,2]
[320053456,1711117845895,-500.0,0.00028493,2]
[320053458,1711117845906,-500.0,0.00028493,2]
[320053459,1711117845915,-500.0,0.00028493,2]
[320053460,1711117845926,-500.0,0.00028493,2]
[320053461,1711117845936,-509.86,0.00028493,2]
[320053462,1711117845948,-500.0,0.00028493,2]
[320053463,1711117845959,-500.0,0.00028493,2]
[320053465,1711117845969,-500.0,0.00028493,2]
[320053466,1711117845980,-500.0,0.00028493,2]
[320053468,1711117845993,-632.82,0.00028493,2]
[320053470,1711117846003,-483.96581288,0.00028493,2]
[320053472,1711117846013,-500.0,0.00028493,2]
[320053473,1711117846023,-500.0,0.00028493,2]
[320053474,1711117846033,-500.0,0.00028493,2]
[320053476,1711117846042,-500.0,0.00028493,2]
[320053477,1711117846052,-629.63,0.00028493,2]
[320053479,1711117846074,-552.09,0.00028493,2]
[320053481,1711117846083,-500.0,0.00028493,2]
[320053482,1711117846093,-2093.55,0.00028493,2]
[320053483,1711117846102,-5116.46,0.00028493,2]
[320053485,1711117846111,-403.39055599,0.00028493,2]
[320053487,1711117846122,-500.0,0.00028493,2]
[320053488,1711117846132,-8368.05,0.00028493,2]
[320053489,1711117846141,-500.0,0.00028493,2]
[320053490,1711117846150,-500.0,0.00028493,2]
[320053491,1711117846159,-2310.34,0.00028493,2]
[320053492,1711117846168,-2056.42,0.00028493,2]
[320053493,1711117846178,-788.62,0.00028493,2]
[320053494,1711117846188,-500.0,0.00028493,2]
[320053495,1711117846199,-20464.6,0.00028493,2]
[320053496,1711117846211,-500.0,0.00028493,2]
[320053497,1711117846222,-1719.33,0.00028493,2]
[320053498,1711117846234,-500.0,0.00028493,2]
[320053499,1711117846245,-348.30982632,0.00028493,2]
[320053500,1711117846256,-3159.2,0.00028493,2]
[320053501,1711117846266,-500.0,0.00028493,2]
[320053502,1711117846280,-551.51,0.00028493,2]
[320053503,1711117846291,-500.37151895,0.00028493,2]
[320053504,1711117846303,-500.0,0.00028493,2]
[320053505,1711117846315,-500.0,0.00028493,2]
[320053506,1711117846327,-500.0,0.00028493,2]
[320053507,1711117846337,-2852.59,0.00028493,2]
[320053508,1711117846348,-1445.33,0.00028493,2]
[320053509,1711117846359,-500.0,0.00028493,2]
[320053510,1711117846375,-500.0,0.00028493,2]
[320053511,1711117846386,-2573.44,0.00028493,2]
[320053513,1711117846397,-2215.11,0.00028493,2]
[320053514,1711117846407,-4705.37,0.00028493,2]
[320053515,1711117846418,-500.0,0.00028493,2]
[320053516,1711117846428,-500.0,0.00028493,2]
[320053517,1711117846438,-500.0,0.00028493,2]
[320053518,1711117846448,-500.0,0.00028493,2]
[320053519,1711117846457,-500.0,0.00028493,2]
[320053520,1711117846467,-1984.69,0.00028493,2]
[320053521,1711117846477,-2608.68,0.00028493,2]
[320053522,1711117846487,-688.14,0.00028493,2]
[320053523,1711117846496,-500.0,0.00028493,2]
[320053524,1711117846506,-500.0,0.00028493,2]
[320053525,1711117846515,-500.0,0.00028493,2]
[320053526,1711117846525,-601.68428916,0.00028493,2]
[320053527,1711117846534,-815.57,0.00028493,2]
[320053529,1711117846544,-500.0,0.00028493,2]
[320053531,1711117846553,-500.0,0.00028493,2]
[320053533,1711117846563,-500.0,0.00028493,2]
[320053534,1711117846572,-1109.02,0.00028493,2]
[320053535,1711117846582,-500.0,0.00028493,2]
[320053536,1711117846592,-502.01098185,0.00028493,2]
[320053537,1711117846602,-500.0,0.00028493,2]
[320053538,1711117846612,-500.0,0.00028493,2]
[320053539,1711117846623,-4622.72,0.00028493,2]
[320053540,1711117846632,-500.0,0.00028493,2]
[320053541,1711117846642,-500.0,0.00028493,2]
[320053542,1711117846653,-500.0,0.00028493,2]
[320053543,1711117846663,-500.0,0.00028493,2]
[320053544,1711117846672,-500.0,0.00028493,2]
[320053545,1711117846681,-778.44,0.00028493,2]
[320053546,1711117846691,-1906.89,0.00028493,2]
[320053547,1711117846702,-500.0,0.00028493,2]
[320053548,1711117846711,-500.0,0.00028493,2]
[320053549,1711117846720,-2234.26,0.00028493,2]
[320053550,1711117846731,-500.0,0.00028493,2]
[320053551,1711117846742,-1838.86,0.00028493,2]
[320053552,1711117846753,-26182.69,0.00028493,2]
[320053553,1711117846763,-500.0,0.00028493,2]
[320053554,1711117846774,-500.0,0.00028493,2]
[320053555,1711117846783,-999.99,0.00028493,2]
[320053556,1711117846793,-5983.95,0.00028493,2]
[320053557,1711117846802,-500.0,0.00028493,2]
[320053558,1711117846811,-500.0,0.00028493,2]
[320053559,1711117846821,-1814.55,0.00028493,2]
[320053560,1711117846831,-500.0,0.00028493,2]
[320053561,1711117846840,-280.62819496,0.00028493,2]
[320053562,1711117846850,-26412.4,0.00028493,2]
[320053563,1711117846859,-166.666666,0.00028679,2]
[320053564,1711117846869,-527.76401956,0.00028767,2]
[320053565,1711117846880,-201.8484782,0.00028925,2]
[320053566,1711117846890,-201.8484782,0.00028925,2]
[320053567,1711117846899,-201.8484782,0.00028925,2]
[320053568,1711117846909,-201.8484782,0.00028925,2]
[320053569,1711117846918,-205.13492374,0.00029038,2]
[320053570,1711117846928,-304.78785734,0.00029038,2]
[320053571,1711117846937,-689.76839438,0.00029038,30]
[320053572,1711117846947,-685.20411728,0.00029039,2]
[320053573,1711117846957,-500.0,0.00029041,2]
[320053574,1711117846966,-500.0,0.00029041,2]
[320053575,1711117846975,-500.0,0.00029041,2]
[320053576,1711117846985,-500.0,0.00029041,2]
[320053577,1711117846994,-500.0,0.00029041,2]
[320053578,1711117847003,-162.17961263,0.00029041,2]
[320053579,1711117847013,-1677.87,0.00029041,2]
[320053580,1711117847023,-500.0,0.00029041,2]
[320053581,1711117847034,-500.0,0.00029041,2]
[320053582,1711117847044,-500.0,0.00029041,2]
[320053583,1711117847053,-500.0,0.00029041,2]
[320053584,1711117847063,-797.16,0.00029041,2]
[320053585,1711117847072,-500.0,0.00029041,2]
[320053586,1711117847082,-500.0,0.00029041,2]
[320053587,1711117847091,-500.0,0.00029041,2]
[320053588,1711117847100,-1000.0,0.00029041,2]
[320053589,1711117847110,-500.0,0.00029041,2]
[320053590,1711117847119,-500.0,0.00029041,2]
[320053591,1711117847133,-500.0,0.00029041,2]
[320053592,1711117847143,-500.0,0.00029041,2]
[320053593,1711117847152,-500.0,0.00029041,2]
[320053594,1711117847162,-558.62127513,0.00029041,2]
[320053595,1711117847171,-500.0,0.00029041,2]
[320053596,1711117847180,-500.0,0.00029041,2]
[320053597,1711117847190,-500.0,0.00029041,2]
[320053598,1711117847200,-1517.03,0.00029041,2]
[320053599,1711117847209,-500.0,0.00029041,2]
[320053600,1711117847219,-500.0,0.00029041,2]
[320053601,1711117847230,-500.0,0.00029041,2]
[320053602,1711117847242,-500.0,0.00029041,2]
[320053603,1711117847253,-678.85,0.00029041,2]
[320053604,1711117847263,-1959.47,0.00029041,2]
[320053605,1711117847278,-500.0,0.00029041,2]
[320053606,1711117847288,-500.0,0.00029041,2]
[320053607,1711117847298,-500.0,0.00029041,2]
[320053608,1711117847307,-500.0,0.00029041,2]
[320053609,1711117847317,-500.0,0.00029041,2]
[320053610,1711117847326,-780.62,0.00029041,2]
[320053611,1711117847336,-500.0,0.00029041,2]
[320053612,1711117847346,-500.0,0.00029041,2]
[320053613,1711117847356,-969.06,0.00029041,2]
[320053614,1711117847367,-1176.2,0.00029041,2]
[320053615,1711117847380,-500.0,0.00029041,2]
[320053616,1711117847391,-2320.15,0.00029041,2]
[320053617,1711117847401,-500.0,0.00029041,2]
[320053618,1711117847411,-871.68,0.00029041,2]
[320053619,1711117847421,-1178.18,0.00029041,2]
[320053620,1711117847431,-500.0,0.00029041,2]
[320053621,1711117847441,-515.73,0.00029041,2]
[320053622,1711117847451,-500.0,0.00029041,2]
[320053623,1711117847460,-1714.78,0.00029041,2]
[320053624,1711117847470,-500.0,0.00029041,2]
[320053625,1711117847480,-1763.67,0.00029041,2]
[320053626,1711117847489,-500.0,0.00029041,2]
[320053627,1711117847499,-500.0,0.00029041,2]
[320053628,1711117847508,-1007.72,0.00029041,2]
[320053629,1711117847518,-500.0,0.00029041,2]
[320053630,1711117847527,-767.75,0.00029041,2]
[320053631,1711117847537,-500.0,0.00029041,2]
[320053632,1711117847547,-500.0,0.00029041,2]
[320053633,1711117847556,-627.94,0.00029041,2]
[320053634,1711117847566,-500.0,0.00029041,2]
[320053635,1711117847576,-527.96,0.00029041,2]
[320053636,1711117847585,-500.0,0.00029041,2]
[320053637,1711117847595,-3104.39,0.00029041,2]
[320053638,1711117847605,-557.96,0.00029041,2]
[320053639,1711117847616,-500.0,0.00029041,2]
[320053640,1711117847628,-500.0,0.00029041,2]
[320053641,1711117847638,-500.0,0.00029041,2]
[320053642,1711117847649,-500.0,0.00029041,2]
[320053643,1711117847659,-500.0,0.00029041,2]
[320053644,1711117847670,-500.0,0.00029041,2]
[320053645,1711117847681,-500.0,0.00029041,2]
[320053646,1711117847691,-500.0,0.00029041,2]
[320053647,1711117847702,-500.0,0.00029041,2]
[320053648,1711117847711,-500.0,0.00029041,2]
[320053649,1711117847721,-521.93,0.00029041,2]
[320053650,1711117847731,-500.0,0.00029041,2]
[320053651,1711117847741,-244.70375022,0.00029041,2]
[320053652,1711117847751,-500.0,0.00029041,2]
[320053653,1711117847761,-500.0,0.00029041,2]
[320053654,1711117847771,-500.0,0.00029041,2]
[320053655,1711117847781,-500.0,0.00029041,2]
[320053656,1711117847791,-509.86,0.00029041,2]
[320053657,1711117847893,-500.0,0.00029041,2]
[320053658,1711117847903,-500.0,0.00029041,2]
[320053659,1711117847912,-500.0,0.00029041,2]
[320053660,1711117847921,-632.82,0.00029041,2]
[320053661,1711117847931,-500.0,0.00029041,2]
[320053662,1711117847941,-500.0,0.00029041,2]
[320053663,1711117847950,-500.0,0.00029041,2]
[320053664,1711117847959,-500.0,0.00029041,2]
[320053665,1711117847969,-629.63,0.00029041,2]
[320053666,1711117847978,-552.09,0.00029041,2]
[320053667,1711117847987,-500.0,0.00029041,2]
[320053668,1711117847996,-2093.55,0.00029041,2]
[320053669,1711117848005,-5116.46,0.00029041,2]
[320053670,1711117848015,-500.0,0.00029041,2]
[320053671,1711117848023,-8368.05,0.00029041,2]
[320053672,1711117848033,-500.0,0.00029041,2]
[320053673,1711117848043,-500.0,0.00029041,2]
[320053674,1711117848052,-2310.34,0.00029041,2]
[320053675,1711117848062,-1018.53127639,0.00029041,2]
[320053676,1711117849100,-662.85805754,0.00029041,2]
[320053677,1711117849113,-375.03066607,0.00029041,2]
[320053678,1711117849125,-788.62,0.00029041,2]
[320053679,1711117849134,-500.0,0.00029041,2]
[320053680,1711117849144,-20464.6,0.00029041,2]
[320053681,1711117849153,-500.0,0.00029041,2]
[320053682,1711117849163,-1719.33,0.00029041,2]
[320053683,1711117849173,-75.04981285,0.00029041,2]
[320053684,1711117849186,-424.95018715,0.00029041,2]
[320053685,1711117849195,-3159.2,0.00029041,2]
[320053686,1711117849207,-419.80480308,0.00029041,2]
[320053687,1711117849294,-500.0,0.00027397,2]
[320053688,1711117849307,-500.0,0.00027945,2]
[320053689,1711117849318,-362.36989471,0.00028493,2]
[320053690,1711117849328,-80.19519692,0.00029041,2]
[320053691,1711117849338,-551.51,0.00029041,2]
[320053692,1711117849349,-500.0,0.00029041,2]
[320053693,1711117849360,-500.0,0.00029041,2]
[320053694,1711117849370,-147.37490837,0.00029041,2]
[320053695,1711117849391,-352.62509163,0.00029041,2]
[320053696,1711117849401,-2852.59,0.00029041,2]
[320053697,1711117849414,-1445.33,0.00029041,2]
[320053698,1711117849424,-500.0,0.00029041,2]
[320053699,1711117849435,-296.26124854,0.00029041,2]
[320053700,1711117849448,-203.73875146,0.00029041,2]
[320053701,1711117849458,-355.37254665,0.00029041,2]
[320053702,1711117849477,-504.03199248,0.00029041,2]
[320053703,1711117849606,-1714.03546087,0.00029041,2]
[320053704,1711117849616,-654.3041963,0.00029041,2]
[320053705,1711117849633,-809.9999999,0.00029041,2]
[320053706,1711117849646,-750.8058038,0.00029041,2]
[320053707,1711117849657,-4705.37,0.00029041,2]
[320053708,1711117849668,-500.0,0.00029041,2]
[320053709,1711117849678,-500.0,0.00029041,2]
[320053710,1711117849688,-500.0,0.00029041,2]
[320053711,1711117849698,-500.0,0.00029041,2]
[320053712,1711117849708,-500.0,0.00029041,2]
[320053713,1711117849718,-1984.69,0.00029041,2]
[320053714,1711117849728,-2608.68,0.00029041,2]
[320053715,1711117849737,-688.14,0.00029041,2]
[320053716,1711117849747,-500.0,0.00029041,2]
[320053717,1711117849757,-503.664255,0.00029041,2]
[320053718,1711117849767,-500.0,0.00029041,2]
[320053719,1711117849777,-815.57,0.00029041,2]
[320053720,1711117849787,-500.0,0.00029041,2]
[320053721,1711117849796,-500.0,0.00029041,2]
[320053722,1711117849806,-500.0,0.00029041,2]
[320053723,1711117849815,-1109.02,0.00029041,2]
[320053724,1711117849825,-500.0,0.00029041,2]
[320053725,1711117849835,-500.0,0.00029041,2]
[320053726,1711117849844,-500.0,0.00029041,2]
[320053727,1711117849853,-116.48409665,0.00029041,2]
[320053728,1711117849866,-4506.23590335,0.00029041,2]
[320053729,1711117849879,-500.0,0.00029041,2]
[320053730,1711117849888,-500.0,0.00029041,2]
[320053731,1711117849898,-500.0,0.00029041,2]
[320053732,1711117849907,-500.0,0.00029041,2]
[320053733,1711117849917,-778.44,0.00029041,2]
[320053734,1711117849926,-1906.89,0.00029041,2]
[320053735,1711117849936,-500.0,0.00029041,2]
[320053736,1711117849945,-2234.26,0.00029041,2]
[320053737,1711117849955,-1838.86,0.00029041,2]
[320053738,1711117849965,-26182.69,0.00029041,2]
[320053739,1711117849974,-500.0,0.00029041,2]
[320053740,1711117849984,-500.0,0.00029041,2]
[320053741,1711117849993,-999.99,0.00029041,2]
[320053742,1711117850003,-5983.95,0.00029041,2]
[320053743,1711117850012,-500.0,0.00029041,2]
[320053744,1711117850021,-500.0,0.00029041,2]
[320053745,1711117850031,-1814.55,0.00029041,2]
[320053746,1711117850041,-500.0,0.00029041,2]
[320053747,1711117850051,-26412.4,0.00029041,2]
[320053748,1711117850062,-171.64352954,0.00029247,4]
[320053749,1711117850072,-166.666666,0.00029321,2]
[320053750,1711117850082,-500.0,0.00029589,2]
[320053751,1711117850093,-500.0,0.00029589,2]
[320053752,1711117850103,-500.0,0.00029589,2]
[320053753,1711117850112,-500.0,0.00029589,2]
[320053754,1711117850122,-1677.87,0.00029589,2]
[320053755,1711117850134,-500.0,0.00029589,2]
[320053756,1711117850143,-500.0,0.00029589,2]
[320053757,1711117850153,-500.03238454,0.00029589,2]
[320053758,1711117850163,-797.16,0.00029589,2]
[320053759,1711117850173,-221.66082681,0.00029589,2]
[320053760,1711117850185,-500.0,0.00029589,2]
[320053761,1711117850195,-596.77497147,0.00029589,2]
[320053762,1711117850204,-758.65195657,0.00029589,2]
[320053763,1711117850215,-500.0,0.00029589,2]
[320053764,1711117850224,-500.0,0.00029589,2]
[320053765,1711117850234,-500.0,0.00029589,2]
[320053766,1711117850244,-500.0,0.00029589,2]
[320053767,1711117850253,-500.0,0.00029589,2]
[320053768,1711117850263,-500.0,0.00029589,2]
[320053769,1711117850277,-1517.03,0.00029589,2]
[320053770,1711117850287,-500.0,0.00029589,2]
[320053771,1711117850297,-500.0,0.00029589,2]
[320053772,1711117850307,-500.0,0.00029589,2]
[320053773,1711117850316,-678.85,0.00029589,2]
[320053774,1711117850326,-1959.47,0.00029589,2]
[320053775,1711117850337,-500.0,0.00029589,2]
[320053776,1711117850347,-500.0,0.00029589,2]
[320053777,1711117850357,-500.0,0.00029589,2]
[320053778,1711117850368,-780.62,0.00029589,2]
[320053779,1711117850380,-500.0,0.00029589,2]
[320053780,1711117850389,-969.06,0.00029589,2]
[320053781,1711117850399,-1176.2,0.00029589,2]
[320053782,1711117850408,-2320.15,0.00029589,2]
[320053783,1711117850417,-871.68,0.00029589,2]
[320053784,1711117850427,-1178.18,0.00029589,2]
[320053785,1711117850437,-500.0,0.00029589,2]
[320053786,1711117850447,-515.73,0.00029589,2]
[320053787,1711117850456,-500.0,0.00029589,2]
[320053788,1711117850466,-618.18118119,0.00029589,2]
[320053789,1711117850500,-1096.59881881,0.00029589,2]
[320053790,1711117850509,-500.0,0.00029589,2]
[320053791,1711117850519,-1763.67,0.00029589,2]
[320053792,1711117850529,-500.0,0.00029589,2]
[320053793,1711117850538,-500.0,0.00029589,2]
[320053794,1711117850548,-1007.72,0.00029589,2]
[320053795,1711117850558,-500.0,0.00029589,2]
[320053796,1711117850568,-442.80792752,0.00029589,2]
[320053797,1711117850581,-324.94207248,0.00029589,2]
[320053798,1711117850590,-500.0,0.00029589,2]
[320053799,1711117850599,-500.0,0.00029589,2]
[320053800,1711117850609,-627.94,0.00029589,2]
[320053801,1711117850618,-500.0,0.00029589,2]
[320053802,1711117850631,-527.96,0.00029589,2]
[320053803,1711117850640,-325.25792752,0.00029589,2]
[320053804,1711117850711,-174.74207248,0.00029589,2]
[320053805,1711117850721,-3104.39,0.00029589,2]
[320053806,1711117850731,-557.96,0.00029589,2]
[320053807,1711117850740,-499.19217239,0.00029589,2]
[320053808,1711117850749,-500.0,0.00029589,2]
[320053809,1711117850759,-500.0,0.00029589,2]
[320053810,1711117850769,-500.0,0.00029589,2]
[320053811,1711117850778,-500.0,0.00029589,2]
[320053812,1711117850787,-500.0,0.00029589,2]
[320053813,1711117850797,-500.0,0.00029589,2]
[320053814,1711117850806,-500.0,0.00029589,2]
[320053815,1711117850815,-500.0,0.00029589,2]
[320053816,1711117850825,-500.0,0.00029589,2]
[320053817,1711117850834,-521.93,0.00029589,2]
[320053818,1711117850844,-500.0,0.00029589,2]
[320053819,1711117850853,-500.0,0.00029589,2]
[320053820,1711117850863,-500.0,0.00029589,2]
[320053821,1711117850872,-500.0,0.00029589,2]
[320053822,1711117850884,-500.0,0.00029589,2]
[320053823,1711117850893,-509.86,0.00029589,2]
[320053824,1711117850903,-500.0,0.00029589,2]
[320053825,1711117850912,-500.0,0.00029589,2]
[320053826,1711117850922,-500.0,0.00029589,2]
[320053827,1711117850931,-500.0,0.00029589,2]
[320053828,1711117850941,-500.0,0.00029589,2]
[320053829,1711117850950,-500.0,0.00029589,2]
[320053830,1711117850959,-629.63,0.00029589,2]
[320053831,1711117850968,-552.09,0.00029589,2]
[320053832,1711117850977,-501.97136362,0.00029589,2]
[320053833,1711117850986,-2093.55,0.00029589,2]
[320053834,1711117850995,-5116.46,0.00029589,2]
[320053835,1711117851004,-500.0,0.00029589,2]
[320053836,1711117851014,-8368.05,0.00029589,2]
[320053837,1711117851023,-500.0,0.00029589,2]
[320053838,1711117851032,-500.0,0.00029589,2]
[320053839,1711117851042,-2310.34,0.00029589,2]
[320053840,1711117851051,-2056.42,0.00029589,2]
[320053841,1711117851160,-788.62,0.00029589,2]
[320053842,1711117851170,-500.0,0.00029589,2]
[320053843,1711117851179,-20464.6,0.00029589,2]
[320053844,1711117851190,-500.0,0.00029589,2]
[320053845,1711117851201,-1719.33,0.00029589,2]
[320053846,1711117851211,-294.38686381,0.00029589,2]
[320053847,1711117851220,-3159.2,0.00029589,2]
[320053848,1711117851230,-500.0,0.00029589,2]
[320053849,1711117851242,-551.51,0.00029589,2]
[320053850,1711117851252,-500.0,0.00029589,2]
[320053851,1711117851262,-500.0,0.00029589,2]
[320053852,1711117851273,-2852.59,0.00029589,2]
[320053853,1711117851286,-1445.33,0.00029589,2]
[320053854,1711117851300,-500.0,0.00029589,2]
[320053855,1711117851310,-500.0,0.00029589,2]
[320053856,1711117851319,-2573.44,0.00029589,2]
[320053857,1711117851330,-2215.11,0.00029589,2]
[320053858,1711117851340,-4705.37,0.00029589,2]
[320053859,1711117851350,-500.0,0.00029589,2]
[320053860,1711117851359,-500.0,0.00029589,2]
[320053861,1711117851369,-500.0,0.00029589,2]
[320053862,1711117851380,-500.0,0.00029589,2]
[320053863,1711117851389,-500.0,0.00029589,2]
[320053864,1711117851399,-1984.69,0.00029589,2]
[320053865,1711117851408,-166.79076738,0.00029589,2]
[320053903,1711118309393,-689.76839438,0.00029,30]
[320053904,1711118309431,-25058.95388204,0.00029988,30]
[320053905,1711118309481,-150.5,0.00032298,35]
[320053906,1711118309505,-155.02,0.00032298,35]
[320053907,1711118309529,-150.5,0.00032308,35]
[320053908,1711118309559,-150.5,0.00032308,35]
[320053909,1711118309592,-150.5,0.00032318,35]
[320053910,1711118309619,-150.5,0.00032318,35]
[320053911,1711118309676,-500.0,0.0003352,120]
[320053912,1711118309706,-500.0,0.0003352,120]
[320053913,1711118309732,-500.0,0.0003352,120]
[320053914,1711118309762,-541.6,0.0003352,120]
[320053915,1711118309798,-196.28,0.0003398,35]
[320053916,1711118309828,-150.5,0.0003399,35]
[320053917,1711118309866,-175.12065411,0.00035,30]
[320053918,1711118309901,-20000.0,0.00035,30]
[320053919,1711118309931,-1474.0,0.00035,120]
[320053920,1711118309971,-194.38,0.0003559,35]
[320053921,1711118310011,-5619.517776,0.00035616,120]
[320053922,1711118310053,-1683.48790586,0.000368,48]
[320053923,1711118310077,-1092.24110598,0.0003707,31]
[320053924,1711118310129,-162.50184426,0.00039768,120]
[320053925,1711118310157,-629.74541683,0.00039999,31]
[320053926,1711118310190,-2000.0,0.00041,30]
[320053927,1711118310217,-2000.0,0.0004101,30]
[320053928,1711118310245,-2000.0,0.0004102,30]
[320053929,1711118310273,-2314.150266,0.0004103,30]
[320053930,1711118310306,-373.30141735,0.00041263,30]
[320053931,1711118310333,-997.0,0.00041515,30]
[320053932,1711118310358,-5619.517776,0.00041553,120]
[320053933,1711118310385,-1350.84,0.00042,30]
[320053934,1711118310411,-425.15175264,0.00042407,30]
[320053935,1711118310443,-373.30141735,0.00042564,30]
[320053936,1711118310472,-997.0,0.000437,30]
[320053937,1711118310508,-997.0,0.000437,30]
[320053938,1711118310537,-466.49294527,0.000437,30]
[320053939,1711118310565,-997.0,0.000437,30]
[320053940,1711118310596,-589.31793464,0.000439,120]
[320053941,1711118310627,-179644.86479185,0.00044,120]
[320053942,1711118310657,-373.30141735,0.00044226,30]
[320053943,1711118310686,-1394.17006154,0.00044378,49]
[320053944,1711118310719,-1005.77855828,0.000449,120]
[320053945,1711118310753,-1933.54858484,0.00045,30]
[320053946,1711118310783,-2185.0,0.00045,30]
[320053947,1711118310812,-148422.9492589,0.00045,120]
[320053948,1711118310840,-74394.50352841,0.00045,120]
[320053949,1711118310869,-373.30141735,0.00045168,30]
[320053950,1711118310897,-6000.0,0.000453,120]
[320053951,1711118311095,-6000.0,0.000453,120]
[320053952,1711118311118,-6000.0,0.000453,120]
[320053953,1711118311142,-6000.0,0.000453,120]
[320053954,1711118311166,-6000.0,0.000453,120]
[320053955,1711118311191,-6000.0,0.00045374,120]
[320053956,1711118311216,-6000.0,0.00045374,120]
[320053957,1711118311244,-6000.0,0.00045374,120]
[320053958,1711118311269,-6000.0,0.00045448,120]
[320053959,1711118311291,-6000.0,0.00045522,120]
[320053960,1711118311315,-17715.5553028,0.0004558,120]
[320053961,1711118311337,-6000.0,0.00045596,120]
[320053962,1711118311360,-6000.0,0.00045596,120]
[320053963,1711118311383,-6000.0,0.0004567,120]
[320053964,1711118311411,-6000.0,0.0004567,120]
[320053965,1711118311434,-373.30141735,0.00045705,30]
[320053966,1711118311457,-6000.0,0.00045744,120]
[320053967,1711118311482,-608.03517262,0.00045744,120]
[320053968,1711118316597,-5391.96482738,0.00045744,120]
[320053969,1711118316620,-6000.0,0.00045818,120]
[320053970,1711118316644,-6000.0,0.00045892,120]
[320053971,1711118316669,-6000.0,0.00045892,120]
[320053972,1711118316695,-997.0,0.00046,30]
[320053973,1711118316720,-997.0,0.00046,30]
[320053974,1711118316749,-21873.2,0.00046,30]
[320053975,1711118316773,-933.01352973,0.00046,30]
[320053976,1711118316797,-997.57558035,0.00046,90]
[320053977,1711118316823,-997.0,0.00046,30]
[320053978,1711118316845,-997.0,0.00046,30]
[320053979,1711118316870,-997.0,0.00046,30]
[320053980,1711118316895,-997.0,0.00046,30]
[320053981,1711118316920,-997.0,0.00046,30]
[320053982,1711118316944,-6000.0,0.0004604,120]
[320053983,1711118316969,-6000.0,0.00046114,120]
[320053984,1711118316996,-6000.0,0.00046188,120]
[320053985,1711118317019,-6000.0,0.00046262,120]
[320053986,1711118317045,-6000.0,0.00046336,120]
[320053987,1711118317073,-3771.77,0.0004641,120]
[320053988,1711118317098,-425.15175264,0.00046471,30]
[320053989,1711118317125,-425.15175264,0.00046981,30]
[320053990,1711118317156,-1963.0,0.00047,30]
[320053991,1711118317179,-2000.0,0.00047,30]
[320053992,1711118317202,-2000.0,0.00047,30]
[320053993,1711118317225,-2000.0,0.00047,30]
[320053994,1711118317252,-2000.0,0.00047,30]